[Event "*** SCC Grand Prix: Titled Tuesday Blitz"]
[Site "Chess.com"]
[Date "2020.07.07"]
[Round "3"]
[White "ThePatrick27"]
[Black "WashUntilHoles"]
[Result "1-0"]
[WhiteElo "2529"]
[BlackElo "2727"]
[TimeControl "180+1"]
[EndTime "10:29:07 PDT"]
[Termination "ThePatrick27 won on time"]

1. d4 {[%clk 0:03:00.9]} 1... Nf6 {[%clk 0:02:59.9]} 2. c4 {[%clk 0:03:01.2]}
2... g6 {[%clk 0:03:00.1]} 3. Nc3 {[%clk 0:03:00.8]} 3... Bg7 {[%clk 0:03:00.5]}
4. e4 {[%clk 0:02:58.1]} 4... d6 {[%clk 0:03:00.6]} 5. Nf3 {[%clk 0:02:58.1]}
5... O-O {[%clk 0:03:00.9]} 6. Be2 {[%clk 0:02:56.8]} 6... e5 {[%clk 0:03:01.2]}
7. Be3 {[%clk 0:02:56.9]} 7... h6 {[%clk 0:02:45.7]} 8. dxe5 {[%clk 0:02:37.6]}
8... Ng4 {[%clk 0:02:44.2]} 9. Bc1 {[%clk 0:02:18.3]} 9... Nxe5 {[%clk
0:02:18.3]} 10. Nxe5 {[%clk 0:02:17.7]} 10... dxe5 {[%clk 0:02:18.4]} 11. Qxd8
{[%clk 0:02:10.1]} 11... Rxd8 {[%clk 0:02:19.3]} 12. Nd5 {[%clk 0:02:03.3]}
12... Na6 {[%clk 0:02:16.9]} 13. Be3 {[%clk 0:02:00.3]} 13... c6 {[%clk
0:02:07.7]} 14. Ne7+ {[%clk 0:01:58.8]} 14... Kh7 {[%clk 0:01:58.9]} 15. Nxc8
{[%clk 0:01:59.7]} 15... Rdxc8 {[%clk 0:01:39.5]} 16. O-O-O {[%clk 0:01:49.8]}
16... Rc7 {[%clk 0:01:28.4]} 17. Rd2 {[%clk 0:01:36.4]} 17... Bf8 {[%clk
0:01:27.3]} 18. Rhd1 {[%clk 0:01:15.7]} 18... Bc5 {[%clk 0:01:27.3]} 19. Rd7
{[%clk 0:00:48.9]} 19... Bxe3+ {[%clk 0:01:26.7]} 20. fxe3 {[%clk 0:00:49.6]}
20... Rac8 {[%clk 0:01:27.2]} 21. R7d6 {[%clk 0:00:40.6]} 21... Nc5 {[%clk
0:01:24.7]} 22. Bg4 {[%clk 0:00:39.3]} 22... Re8 {[%clk 0:01:20.7]} 23. Bf3
{[%clk 0:00:38.1]} 23... a5 {[%clk 0:01:08.1]} 24. b3 {[%clk 0:00:37.5]} 24...
Kg7 {[%clk 0:01:06.6]} 25. Kc2 {[%clk 0:00:37.1]} 25... Ree7 {[%clk 0:01:01.7]}
26. a3 {[%clk 0:00:36.7]} 26... b5 {[%clk 0:00:36.6]} 27. b4 {[%clk 0:00:29.4]}
27... axb4 {[%clk 0:00:32.8]} 28. axb4 {[%clk 0:00:30.3]} 28... Nb7 {[%clk
0:00:33.3]} 29. c5 {[%clk 0:00:26.3]} 29... h5 {[%clk 0:00:24.5]} 30. h4 {[%clk
0:00:25.7]} 30... Kf8 {[%clk 0:00:23.6]} 31. Kb3 {[%clk 0:00:23]} 31... Ke8
{[%clk 0:00:14]} 32. g4 {[%clk 0:00:22]} 32... Rcd7 {[%clk 0:00:10.3]} 33. Rxc6
{[%clk 0:00:20.6]} 33... Rxd1 {[%clk 0:00:08.4]} 34. Bxd1 {[%clk 0:00:21.5]}
34... Rd7 {[%clk 0:00:08.2]} 35. Kc2 {[%clk 0:00:20]} 35... Nd8 {[%clk
0:00:01.9]} 36. Rb6 {[%clk 0:00:18.9]} 1-0

[Event "*** SCC Grand Prix: Titled Tuesday Blitz"]
[Site "Chess.com"]
[Date "2020.07.07"]
[Round "3"]
[White "IwkooO"]
[Black "CarlosAlbornoz"]
[Result "0-1"]
[WhiteElo "2585"]
[BlackElo "2802"]
[TimeControl "180+1"]
[EndTime "10:29:10 PDT"]
[Termination "CarlosAlbornoz won by resignation"]

1. e4 {[%clk 0:03:00.9]} 1... c5 {[%clk 0:02:59.4]} 2. Nf3 {[%clk 0:03:01]} 2...
d6 {[%clk 0:02:59.8]} 3. d4 {[%clk 0:03:01.6]} 3... cxd4 {[%clk 0:03:00.7]} 4.
Nxd4 {[%clk 0:03:02.2]} 4... Nf6 {[%clk 0:03:01.1]} 5. Nc3 {[%clk 0:03:02.9]}
5... a6 {[%clk 0:03:01.6]} 6. Be3 {[%clk 0:03:03.4]} 6... e5 {[%clk 0:03:01.5]}
7. Nb3 {[%clk 0:03:04]} 7... Be6 {[%clk 0:03:01.9]} 8. Qd2 {[%clk 0:03:03.8]}
8... Nbd7 {[%clk 0:03:01.6]} 9. f4 {[%clk 0:03:03.7]} 9... Rc8 {[%clk
0:02:59.8]} 10. O-O-O {[%clk 0:02:56.3]} 10... b5 {[%clk 0:02:58.9]} 11. h3
{[%clk 0:02:55.3]} 11... Qc7 {[%clk 0:02:38.4]} 12. Bd3 {[%clk 0:02:15.5]} 12...
Be7 {[%clk 0:02:26.5]} 13. g4 {[%clk 0:02:14.1]} 13... b4 {[%clk 0:02:17.5]} 14.
Ne2 {[%clk 0:02:04.3]} 14... a5 {[%clk 0:02:10.3]} 15. g5 {[%clk 0:01:47.9]}
15... Nh5 {[%clk 0:01:59.9]} 16. f5 {[%clk 0:01:44.8]} 16... Bc4 {[%clk
0:01:59.9]} 17. Kb1 {[%clk 0:01:41.8]} 17... a4 {[%clk 0:01:55]} 18. Nbc1 {[%clk
0:01:41.7]} 18... d5 {[%clk 0:01:53.5]} 19. exd5 {[%clk 0:01:04]} 19... Bxd5
{[%clk 0:01:49.5]} 20. Bb5 {[%clk 0:01:04.1]} 20... Bc6 {[%clk 0:01:48.4]} 21.
Bxc6 {[%clk 0:01:02.7]} 21... Qxc6 {[%clk 0:01:49.3]} 22. Rhf1 {[%clk
0:00:49.7]} 22... Nc5 {[%clk 0:01:47]} 23. Bxc5 {[%clk 0:00:48.1]} 23... Bxc5
{[%clk 0:01:47.4]} 24. Nd3 {[%clk 0:00:46.4]} 24... Bd6 {[%clk 0:01:17]} 25. Rc1
{[%clk 0:00:33.3]} 25... O-O {[%clk 0:01:15]} 26. Qe3 {[%clk 0:00:27]} 26... e4
{[%clk 0:01:10.1]} 27. Nf2 {[%clk 0:00:21.9]} 27... Rfe8 {[%clk 0:01:08.8]} 28.
f6 {[%clk 0:00:20]} 28... Bc5 {[%clk 0:01:04.9]} 29. Nd4 {[%clk 0:00:08.9]}
29... Qb6 {[%clk 0:01:05]} 30. Rcd1 {[%clk 0:00:08.4]} 30... Rcd8 {[%clk
0:01:05.1]} 31. Nxe4 {[%clk 0:00:08.3]} 31... Bxd4 {[%clk 0:01:04.1]} 32. Qf3
{[%clk 0:00:08.5]} 32... Rxe4 {[%clk 0:00:52.8]} 33. Qxe4 {[%clk 0:00:07.8]}
33... Ng3 {[%clk 0:00:53]} 34. Qe7 {[%clk 0:00:05.1]} 34... Nxf1 {[%clk
0:00:51]} 35. Rxf1 {[%clk 0:00:05.8]} 35... Qd6 {[%clk 0:00:46.6]} 36. Qb7
{[%clk 0:00:04.3]} 36... Bxf6 {[%clk 0:00:41.1]} 37. Qf3 {[%clk 0:00:04.4]}
37... Bxg5 {[%clk 0:00:34.4]} 38. Qxf7+ {[%clk 0:00:05]} 38... Kh8 {[%clk
0:00:34.4]} 39. b3 {[%clk 0:00:05]} 39... axb3 {[%clk 0:00:29.9]} 40. axb3
{[%clk 0:00:05.9]} 40... Bf6 {[%clk 0:00:29.7]} 41. Re1 {[%clk 0:00:04.4]} 41...
Qd1+ {[%clk 0:00:28.6]} 0-1

[Event "*** SCC Grand Prix: Titled Tuesday Blitz"]
[Site "Chess.com"]
[Date "2020.07.07"]
[Round "3"]
[White "Unknown_IM"]
[Black "m_ezat"]
[Result "0-1"]
[WhiteElo "2346"]
[BlackElo "2537"]
[TimeControl "180+1"]
[EndTime "10:29:10 PDT"]
[Termination "m_ezat won by resignation"]

1. e4 {[%clk 0:02:56.7]} 1... c6 {[%clk 0:02:59.4]} 2. d4 {[%clk 0:02:55.8]}
2... d5 {[%clk 0:02:59.9]} 3. Nc3 {[%clk 0:02:53.6]} 3... b5 {[%clk 0:02:57]} 4.
e5 {[%clk 0:02:49.3]} 4... a6 {[%clk 0:02:55.7]} 5. Bd3 {[%clk 0:02:47.2]} 5...
Qb6 {[%clk 0:02:41.2]} 6. Nge2 {[%clk 0:02:40.2]} 6... h5 {[%clk 0:02:33.8]} 7.
O-O {[%clk 0:02:38.6]} 7... h4 {[%clk 0:02:32.1]} 8. h3 {[%clk 0:02:36.5]} 8...
Nh6 {[%clk 0:02:30.5]} 9. f4 {[%clk 0:02:34.2]} 9... Bf5 {[%clk 0:02:29.2]} 10.
a3 {[%clk 0:02:27.3]} 10... e6 {[%clk 0:02:28.5]} 11. Be3 {[%clk 0:02:23.7]}
11... c5 {[%clk 0:02:25.7]} 12. Bf2 {[%clk 0:02:14.8]} 12... Nc6 {[%clk
0:02:23.3]} 13. Bxh4 {[%clk 0:02:07.4]} 13... cxd4 {[%clk 0:02:07.4]} 14. Nb1
{[%clk 0:02:03]} 14... Rc8 {[%clk 0:01:55.6]} 15. Bf2 {[%clk 0:02:01.3]} 15...
Bxd3 {[%clk 0:01:49.1]} 16. Qxd3 {[%clk 0:02:00.8]} 16... Nf5 {[%clk 0:01:49.6]}
17. Nd2 {[%clk 0:02:00.4]} 17... g5 {[%clk 0:01:45.7]} 18. g4 {[%clk 0:01:51.7]}
18... Ne3 {[%clk 0:01:43.5]} 19. Nxd4 {[%clk 0:01:34.6]} 19... Qxd4 {[%clk
0:01:19.6]} 20. Bxe3 {[%clk 0:01:25.4]} 20... Qxd3 {[%clk 0:01:17.7]} 21. cxd3
{[%clk 0:01:25.4]} 21... Rxh3 {[%clk 0:01:17.8]} 22. Rf3 {[%clk 0:01:25.5]}
22... Rh4 {[%clk 0:01:15.4]} 23. Rg3 {[%clk 0:00:39]} 23... d4 {[%clk
0:00:42.3]} 24. Nf3 {[%clk 0:00:16.2]} 24... dxe3 {[%clk 0:00:39.1]} 25. Nxh4
{[%clk 0:00:16.7]} 25... gxf4 {[%clk 0:00:39.7]} 26. Rh3 {[%clk 0:00:17.6]}
26... Nxe5 {[%clk 0:00:37.6]} 27. Nf3 {[%clk 0:00:16.7]} 27... Nxd3 {[%clk
0:00:23.6]} 28. Rh2 {[%clk 0:00:17.1]} 28... Nf2 {[%clk 0:00:22.1]} 29. Kf1
{[%clk 0:00:15.4]} 29... Nxg4 {[%clk 0:00:20.6]} 30. Re2 {[%clk 0:00:14.5]}
30... f5 {[%clk 0:00:19.7]} 31. Ng5 {[%clk 0:00:14]} 31... Kd7 {[%clk
0:00:19.4]} 32. Nf7 {[%clk 0:00:14]} 32... Ke7 {[%clk 0:00:17.9]} 33. Ng5 {[%clk
0:00:13]} 33... Bh6 {[%clk 0:00:17.9]} 34. Nf3 {[%clk 0:00:12.7]} 34... e5
{[%clk 0:00:18.5]} 35. Rd1 {[%clk 0:00:13.2]} 35... Ke6 {[%clk 0:00:18.4]} 36.
Nh4 {[%clk 0:00:12.5]} 36... Bg5 {[%clk 0:00:17.7]} 37. Nf3 {[%clk 0:00:12.8]}
37... Bf6 {[%clk 0:00:18.2]} 38. Kg2 {[%clk 0:00:13.1]} 38... Rg8 {[%clk
0:00:18]} 39. Kh3 {[%clk 0:00:12.1]} 39... Nf2+ {[%clk 0:00:16.5]} 0-1

[Event "*** SCC Grand Prix: Titled Tuesday Blitz"]
[Site "Chess.com"]
[Date "2020.07.07"]
[Round "3"]
[White "Benjoneliere44"]
[Black "imdarealist"]
[Result "1-0"]
[WhiteElo "2530"]
[BlackElo "2335"]
[TimeControl "180+1"]
[EndTime "10:29:11 PDT"]
[Termination "Benjoneliere44 won by resignation"]

1. d4 {[%clk 0:03:00.9]} 1... d5 {[%clk 0:02:58.7]} 2. c4 {[%clk 0:03:00.7]}
2... e6 {[%clk 0:02:58.7]} 3. Nc3 {[%clk 0:02:58.6]} 3... Nf6 {[%clk 0:02:59]}
4. cxd5 {[%clk 0:02:57.8]} 4... exd5 {[%clk 0:02:59.9]} 5. Bg5 {[%clk
0:02:57.8]} 5... c6 {[%clk 0:03:00.4]} 6. e3 {[%clk 0:02:57.6]} 6... Be7 {[%clk
0:02:55.4]} 7. Qc2 {[%clk 0:02:57.7]} 7... h6 {[%clk 0:02:53.5]} 8. Bh4 {[%clk
0:02:56.9]} 8... Nh5 {[%clk 0:02:53]} 9. Bxe7 {[%clk 0:02:52.9]} 9... Qxe7
{[%clk 0:02:53.9]} 10. O-O-O {[%clk 0:02:49]} 10... g6 {[%clk 0:02:42.5]} 11. h3
{[%clk 0:02:47.8]} 11... Nd7 {[%clk 0:02:30.1]} 12. g4 {[%clk 0:02:46]} 12...
Ng7 {[%clk 0:02:30.3]} 13. Nge2 {[%clk 0:02:44.5]} 13... Nb6 {[%clk 0:02:28.1]}
14. Nf4 {[%clk 0:02:42.3]} 14... Ne6 {[%clk 0:02:22.1]} 15. Nd3 {[%clk
0:02:41.4]} 15... Bd7 {[%clk 0:02:17.6]} 16. Kb1 {[%clk 0:02:40.4]} 16... O-O-O
{[%clk 0:02:17.7]} 17. Ka1 {[%clk 0:02:40.5]} 17... Kb8 {[%clk 0:02:17.7]} 18.
a3 {[%clk 0:02:39.3]} 18... Rc8 {[%clk 0:02:10.1]} 19. Bg2 {[%clk 0:02:38.9]}
19... Nc4 {[%clk 0:02:07.1]} 20. Rhe1 {[%clk 0:02:34.3]} 20... Qd6 {[%clk
0:02:01.4]} 21. f4 {[%clk 0:02:31.5]} 21... Rhe8 {[%clk 0:01:52.1]} 22. Ne5
{[%clk 0:02:30.4]} 22... Nxe5 {[%clk 0:01:44.2]} 23. fxe5 {[%clk 0:02:27.1]}
23... Qc7 {[%clk 0:01:34.9]} 24. Rf1 {[%clk 0:02:26.5]} 24... Rf8 {[%clk
0:01:30.3]} 25. Rf6 {[%clk 0:02:27]} 25... Qd8 {[%clk 0:00:57]} 26. Rdf1 {[%clk
0:02:24.8]} 26... Qe7 {[%clk 0:00:57.3]} 27. Qb3 {[%clk 0:02:18.1]} 27... Ka8
{[%clk 0:00:56.2]} 28. R1f2 {[%clk 0:02:06.5]} 28... Nc7 {[%clk 0:00:53.5]} 29.
Na4 {[%clk 0:01:52.9]} 29... Ne8 {[%clk 0:00:50.9]} 30. R6f3 {[%clk 0:01:50.5]}
30... f5 {[%clk 0:00:50.9]} 31. Nc5 {[%clk 0:01:45.6]} 31... Rb8 {[%clk
0:00:44.4]} 32. Nxd7 {[%clk 0:01:27]} 32... Qxd7 {[%clk 0:00:45.3]} 33. gxf5
{[%clk 0:01:27.6]} 33... gxf5 {[%clk 0:00:36.7]} 34. h4 {[%clk 0:01:24.9]} 34...
Qe7 {[%clk 0:00:36.9]} 35. Rf4 {[%clk 0:01:22.5]} 35... Nc7 {[%clk 0:00:33.9]}
36. h5 {[%clk 0:01:06.1]} 36... Qg5 {[%clk 0:00:27.8]} 37. Qc2 {[%clk
0:01:05.8]} 37... Ne6 {[%clk 0:00:17.2]} 38. Rxf5 {[%clk 0:01:05.8]} 38... Qxe3
{[%clk 0:00:17.5]} 39. Rxf8 {[%clk 0:01:00.1]} 39... Rxf8 {[%clk 0:00:18.4]} 40.
Rxf8+ {[%clk 0:00:59.9]} 40... Nxf8 {[%clk 0:00:18.8]} 41. Qf5 {[%clk
0:00:53.7]} 41... a5 {[%clk 0:00:09.7]} 42. Qxf8+ {[%clk 0:00:52.4]} 42... Ka7
{[%clk 0:00:10.2]} 43. Qc5+ {[%clk 0:00:53]} 43... Ka6 {[%clk 0:00:10.6]} 44.
Bf1+ {[%clk 0:00:52.1]} 44... b5 {[%clk 0:00:07.8]} 45. Qxc6+ {[%clk 0:00:52.1]}
45... Ka7 {[%clk 0:00:08.7]} 46. Bxb5 {[%clk 0:00:46.7]} 46... Qe1+ {[%clk
0:00:02.7]} 47. Ka2 {[%clk 0:00:43.9]} 47... Qe3 {[%clk 0:00:03.5]} 48. Qc7+
{[%clk 0:00:42.7]} 48... Ka8 {[%clk 0:00:04.4]} 1-0

[Event "*** SCC Grand Prix: Titled Tuesday Blitz"]
[Site "Chess.com"]
[Date "2020.07.07"]
[Round "3"]
[White "MihailNik"]
[Black "Micki-taryan"]
[Result "0-1"]
[WhiteElo "2688"]
[BlackElo "3050"]
[TimeControl "180+1"]
[EndTime "10:29:12 PDT"]
[Termination "Micki-taryan won by resignation"]

1. c4 {[%clk 0:03:00.9]} 1... e5 {[%clk 0:02:58.6]} 2. g3 {[%clk 0:03:01.1]}
2... g6 {[%clk 0:02:58.2]} 3. Bg2 {[%clk 0:03:01.5]} 3... Bg7 {[%clk 0:02:59.1]}
4. Nc3 {[%clk 0:03:02]} 4... Nc6 {[%clk 0:02:59.1]} 5. e4 {[%clk 0:03:02.2]}
5... Nge7 {[%clk 0:02:59]} 6. Nge2 {[%clk 0:03:02.7]} 6... d6 {[%clk 0:02:59.3]}
7. d3 {[%clk 0:03:02.3]} 7... O-O {[%clk 0:02:57]} 8. O-O {[%clk 0:03:02.5]}
8... f5 {[%clk 0:02:56.7]} 9. f4 {[%clk 0:03:02.9]} 9... Kh8 {[%clk 0:02:56.1]}
10. Nd5 {[%clk 0:02:46.1]} 10... Nxd5 {[%clk 0:02:54.8]} 11. cxd5 {[%clk
0:02:46]} 11... Ne7 {[%clk 0:02:55.3]} 12. fxe5 {[%clk 0:02:26.4]} 12... dxe5
{[%clk 0:02:56.2]} 13. d4 {[%clk 0:02:20.6]} 13... fxe4 {[%clk 0:02:48.5]} 14.
Rxf8+ {[%clk 0:02:19]} 14... Qxf8 {[%clk 0:02:46.9]} 15. dxe5 {[%clk 0:02:09.5]}
15... Bxe5 {[%clk 0:02:47.1]} 16. Bf4 {[%clk 0:02:01.1]} 16... Qf6 {[%clk
0:02:36.9]} 17. Bxe4 {[%clk 0:01:40]} 17... Bf5 {[%clk 0:02:36.2]} 18. Bxf5
{[%clk 0:01:36.1]} 18... Nxf5 {[%clk 0:02:37.1]} 19. Rc1 {[%clk 0:01:29.7]}
19... Re8 {[%clk 0:02:34.5]} 20. Qd2 {[%clk 0:01:23.5]} 20... Bd6 {[%clk
0:01:56.5]} 21. Bxd6 {[%clk 0:01:19.3]} 21... cxd6 {[%clk 0:01:56.2]} 22. Nf4
{[%clk 0:01:17.5]} 22... Nd4 {[%clk 0:01:52.5]} 23. Qd3 {[%clk 0:00:57.3]} 23...
Nf5 {[%clk 0:01:19.6]} 24. Qc3 {[%clk 0:00:47.3]} 24... Qxc3 {[%clk 0:00:45.4]}
25. Rxc3 {[%clk 0:00:48.2]} 25... Re7 {[%clk 0:00:45.8]} 26. Ne6 {[%clk
0:00:43.7]} 26... h6 {[%clk 0:00:46.3]} 27. Rc8+ {[%clk 0:00:38.6]} 27... Kh7
{[%clk 0:00:46.7]} 28. Rd8 {[%clk 0:00:38.9]} 28... h5 {[%clk 0:00:46.2]} 29.
Kg2 {[%clk 0:00:38.2]} 29... Ne3+ {[%clk 0:00:43.1]} 30. Kf3 {[%clk 0:00:36.3]}
30... Nxd5 {[%clk 0:00:44]} 31. Rxd6 {[%clk 0:00:36.6]} 31... Nb6 {[%clk
0:00:42.7]} 32. Ng5+ {[%clk 0:00:34]} 32... Kh6 {[%clk 0:00:42.4]} 33. h4 {[%clk
0:00:28.2]} 33... Nc4 {[%clk 0:00:42.6]} 34. Rd8 {[%clk 0:00:28.3]} 34... Kg7
{[%clk 0:00:36.4]} 35. b3 {[%clk 0:00:25.8]} 35... Ne5+ {[%clk 0:00:36.8]} 36.
Kg2 {[%clk 0:00:22.6]} 36... Ng4 {[%clk 0:00:37.3]} 37. Kf3 {[%clk 0:00:21.7]}
37... Ne5+ {[%clk 0:00:36.5]} 38. Kf4 {[%clk 0:00:20.6]} 38... Nc6 {[%clk
0:00:34.9]} 39. Rd6 {[%clk 0:00:20.8]} 39... a5 {[%clk 0:00:28]} 40. Ne6+ {[%clk
0:00:20.9]} 40... Kh6 {[%clk 0:00:21.5]} 41. Nc5 {[%clk 0:00:19]} 41... Ne5
{[%clk 0:00:21.2]} 42. Ne4 {[%clk 0:00:18]} 42... Ng4 {[%clk 0:00:19.6]} 43. Rb6
{[%clk 0:00:17.2]} 43... Rf7+ {[%clk 0:00:19.6]} 44. Nf6 {[%clk 0:00:15.3]}
44... Rxf6+ {[%clk 0:00:20]} 0-1

[Event "*** SCC Grand Prix: Titled Tuesday Blitz"]
[Site "Chess.com"]
[Date "2020.07.07"]
[Round "3"]
[White "peixe64"]
[Black "QuintilianoR"]
[Result "0-1"]
[WhiteElo "2328"]
[BlackElo "2658"]
[TimeControl "180+1"]
[EndTime "10:29:12 PDT"]
[Termination "QuintilianoR won on time"]

1. d4 {[%clk 0:03:00.9]} 1... Nf6 {[%clk 0:02:59.1]} 2. c4 {[%clk 0:03:01.4]}
2... e6 {[%clk 0:02:59.5]} 3. Nc3 {[%clk 0:03:01.9]} 3... Bb4 {[%clk 0:02:59.6]}
4. e3 {[%clk 0:03:02.3]} 4... O-O {[%clk 0:02:59.1]} 5. Ne2 {[%clk 0:03:02.7]}
5... d5 {[%clk 0:02:57.5]} 6. a3 {[%clk 0:03:02.1]} 6... Be7 {[%clk 0:02:58]} 7.
Ng3 {[%clk 0:03:00.6]} 7... c5 {[%clk 0:02:46.8]} 8. dxc5 {[%clk 0:02:59.4]}
8... Bxc5 {[%clk 0:02:44.4]} 9. b4 {[%clk 0:02:51.7]} 9... Bd6 {[%clk
0:02:40.2]} 10. Bb2 {[%clk 0:02:50.4]} 10... a5 {[%clk 0:02:39.2]} 11. b5 {[%clk
0:02:45.8]} 11... b6 {[%clk 0:02:18.1]} 12. cxd5 {[%clk 0:02:24.3]} 12... exd5
{[%clk 0:02:16.4]} 13. Bd3 {[%clk 0:02:16.1]} 13... Be5 {[%clk 0:02:14.8]} 14.
O-O {[%clk 0:02:05.8]} 14... Re8 {[%clk 0:02:13.4]} 15. Qd2 {[%clk 0:01:48.8]}
15... Nbd7 {[%clk 0:02:09]} 16. Nce2 {[%clk 0:01:30.6]} 16... Bxb2 {[%clk
0:01:49.8]} 17. Qxb2 {[%clk 0:01:29.6]} 17... Ne5 {[%clk 0:01:49.3]} 18. Rad1
{[%clk 0:01:18.4]} 18... Bg4 {[%clk 0:01:29.5]} 19. h3 {[%clk 0:01:05.1]} 19...
Bxe2 {[%clk 0:01:24.1]} 20. Bxe2 {[%clk 0:00:53.1]} 20... Qc7 {[%clk 0:01:16.6]}
21. Rc1 {[%clk 0:00:40.4]} 21... Nc4 {[%clk 0:01:14.7]} 22. Qd4 {[%clk
0:00:34.9]} 22... Rac8 {[%clk 0:01:14.1]} 23. Rfd1 {[%clk 0:00:29.3]} 23... Qc5
{[%clk 0:01:05.7]} 24. Qxc5 {[%clk 0:00:21.2]} 24... Rxc5 {[%clk 0:01:06.6]} 25.
a4 {[%clk 0:00:20.7]} 25... Nb2 {[%clk 0:00:57.4]} 26. Rxc5 {[%clk 0:00:20.7]}
26... bxc5 {[%clk 0:00:57.3]} 27. Ra1 {[%clk 0:00:21.4]} 27... c4 {[%clk
0:00:52.4]} 28. Nf1 {[%clk 0:00:18.2]} 28... Ne4 {[%clk 0:00:50.6]} 29. Bf3
{[%clk 0:00:15.5]} 29... c3 {[%clk 0:00:39.1]} 30. Rc1 {[%clk 0:00:10.4]} 30...
Nxa4 {[%clk 0:00:37.9]} 31. Ra1 {[%clk 0:00:09.4]} 31... Nac5 {[%clk 0:00:30.3]}
32. b6 {[%clk 0:00:06.2]} 32... Rb8 {[%clk 0:00:29]} 33. Bxe4 {[%clk 0:00:04.4]}
33... dxe4 {[%clk 0:00:20.8]} 34. Rc1 {[%clk 0:00:04.3]} 34... Na4 {[%clk
0:00:20]} 35. Ra1 {[%clk 0:00:03.7]} 35... Nxb6 {[%clk 0:00:19.4]} 36. Rxa5
{[%clk 0:00:02.1]} 36... Rc8 {[%clk 0:00:18]} 37. Ra1 {[%clk 0:00:01.5]} 37...
Nd5 {[%clk 0:00:17.3]} 0-1

[Event "*** SCC Grand Prix: Titled Tuesday Blitz"]
[Site "Chess.com"]
[Date "2020.07.07"]
[Round "3"]
[White "angryhorse9"]
[Black "DortmundCity"]
[Result "0-1"]
[WhiteElo "2402"]
[BlackElo "2598"]
[TimeControl "180+1"]
[EndTime "10:29:12 PDT"]
[Termination "DortmundCity won by resignation"]

1. e4 {[%clk 0:03:00.8]} 1... c5 {[%clk 0:03:00]} 2. Nf3 {[%clk 0:03:01]} 2...
d6 {[%clk 0:02:58.9]} 3. Bb5+ {[%clk 0:03:01.5]} 3... Nd7 {[%clk 0:02:57.4]} 4.
d4 {[%clk 0:03:00.5]} 4... cxd4 {[%clk 0:02:55.5]} 5. Qxd4 {[%clk 0:03:01.4]}
5... e5 {[%clk 0:02:50.6]} 6. Qd3 {[%clk 0:03:00.5]} 6... a6 {[%clk 0:02:48.3]}
7. Bxd7+ {[%clk 0:02:59.6]} 7... Bxd7 {[%clk 0:02:47.2]} 8. O-O {[%clk
0:02:59.9]} 8... Rc8 {[%clk 0:02:44.4]} 9. Nc3 {[%clk 0:02:54.9]} 9... h6 {[%clk
0:02:35.2]} 10. Nd2 {[%clk 0:02:46.2]} 10... Be6 {[%clk 0:02:30.3]} 11. f4
{[%clk 0:02:43.2]} 11... exf4 {[%clk 0:02:26.1]} 12. Nd5 {[%clk 0:02:36.9]}
12... g5 {[%clk 0:02:19.8]} 13. Qd4 {[%clk 0:02:30.2]} 13... Rh7 {[%clk
0:02:17.3]} 14. Nc4 {[%clk 0:02:04.1]} 14... b5 {[%clk 0:02:06.8]} 15. Ncb6
{[%clk 0:01:59.9]} 15... Rxc2 {[%clk 0:02:00.4]} 16. Bd2 {[%clk 0:01:44]} 16...
Bg7 {[%clk 0:01:57.5]} 17. Qd3 {[%clk 0:01:43.8]} 17... Rc6 {[%clk 0:01:57.2]}
18. Ba5 {[%clk 0:01:43.6]} 18... Ne7 {[%clk 0:01:41.7]} 19. Rac1 {[%clk
0:01:38.4]} 19... Be5 {[%clk 0:01:36.3]} 20. b4 {[%clk 0:00:47.3]} 20... Kf8
{[%clk 0:01:31.6]} 21. Nxe7 {[%clk 0:00:35.9]} 21... Rxc1 {[%clk 0:01:25.1]} 22.
Rxc1 {[%clk 0:00:34.1]} 22... Qxe7 {[%clk 0:01:25.2]} 23. Nd5 {[%clk 0:00:33.7]}
23... Bxd5 {[%clk 0:01:17.5]} 24. Qxd5 {[%clk 0:00:34.2]} 24... Qa7+ {[%clk
0:01:13.8]} 25. Kh1 {[%clk 0:00:31.8]} 25... Qe3 {[%clk 0:01:11.6]} 26. Rd1
{[%clk 0:00:26.6]} 26... f3 {[%clk 0:00:59.2]} 27. Bc7 {[%clk 0:00:25]} 27...
fxg2+ {[%clk 0:00:51.1]} 28. Kxg2 {[%clk 0:00:25.9]} 28... Qe2+ {[%clk 0:00:52]}
29. Kg1 {[%clk 0:00:24.8]} 29... Qxh2+ {[%clk 0:00:51.1]} 30. Kf1 {[%clk
0:00:25]} 30... Ke7 {[%clk 0:00:35.8]} 31. Qb7 {[%clk 0:00:18.1]} 31... Qh3+
{[%clk 0:00:32.1]} 32. Ke2 {[%clk 0:00:16.2]} 32... Qg4+ {[%clk 0:00:32]} 33.
Kd2 {[%clk 0:00:16.1]} 33... Bf4+ {[%clk 0:00:29.4]} 34. Kc3 {[%clk 0:00:12.5]}
34... Qxd1 {[%clk 0:00:29]} 35. Bb6+ {[%clk 0:00:09.3]} 35... Kf6 {[%clk
0:00:26.9]} 36. Bd4+ {[%clk 0:00:09.6]} 36... Be5 {[%clk 0:00:25.5]} 0-1